[Event "Late-Titled-Tuesday-Blitz-September-26-2023"]
[Site "Chess.com"]
[Date "2023.09.26"]
[Round "4"]
[White "Misticpikachu"]
[Black "egnfanclub"]
[Result "1/2-1/2"]
[WhiteElo "2556"]
[BlackElo "2398"]
[TimeControl "180+1"]
[EndTime "14:40:21 PDT"]
[Termination "Game drawn by 50-move rule"]

1. c4 {[%clk 0:03:00.9]} 1... c5 {[%clk 0:02:59.6]} 2. Nf3 {[%clk 0:02:58]} 2...
Nf6 {[%clk 0:03:00.2]} 3. Nc3 {[%clk 0:02:58.2]} 3... d5 {[%clk 0:03:00.8]} 4.
cxd5 {[%clk 0:02:58]} 4... Nxd5 {[%clk 0:03:01.7]} 5. g3 {[%clk 0:02:58.5]} 5...
Nc6 {[%clk 0:03:01.4]} 6. Bg2 {[%clk 0:02:58.7]} 6... Nc7 {[%clk 0:03:02]} 7.
O-O {[%clk 0:02:58.7]} 7... e5 {[%clk 0:03:02.7]} 8. a3 {[%clk 0:02:53.7]} 8...
Rb8 {[%clk 0:03:01.9]} 9. e3 {[%clk 0:02:48.7]} 9... Be7 {[%clk 0:02:56.7]} 10.
d4 {[%clk 0:02:49.2]} 10... exd4 {[%clk 0:02:55.6]} 11. exd4 {[%clk 0:02:50.1]}
11... cxd4 {[%clk 0:02:56]} 12. Ne2 {[%clk 0:02:50.5]} 12... d3 {[%clk
0:02:53.5]} 13. Nf4 {[%clk 0:02:50.7]} 13... Bf5 {[%clk 0:02:46.7]} 14. Ne1
{[%clk 0:02:39]} 14... O-O {[%clk 0:02:11.1]} 15. Nfxd3 {[%clk 0:02:20.5]} 15...
Nd4 {[%clk 0:01:56.9]} 16. Be3 {[%clk 0:02:14.8]} 16... Nce6 {[%clk 0:01:55.1]}
17. Nf4 {[%clk 0:01:59.3]} 17... Bf6 {[%clk 0:01:39.2]} 18. Nxe6 {[%clk
0:01:53]} 18... Bxe6 {[%clk 0:01:26.3]} 19. Nf3 {[%clk 0:01:53]} 19... Bb3
{[%clk 0:01:16.3]} 20. Qd2 {[%clk 0:01:45.8]} 20... Nxf3+ {[%clk 0:01:12.4]} 21.
Bxf3 {[%clk 0:01:44.4]} 21... Qxd2 {[%clk 0:01:11.5]} 22. Bxd2 {[%clk
0:01:45.3]} 22... b6 {[%clk 0:01:04.2]} 23. Bf4 {[%clk 0:01:40.7]} 23... Rbd8
{[%clk 0:01:02.4]} 24. Rac1 {[%clk 0:01:41.2]} 24... a5 {[%clk 0:00:48.2]} 25.
Rc6 {[%clk 0:01:11.8]} 25... b5 {[%clk 0:00:31.5]} 26. Bc7 {[%clk 0:01:08.8]}
26... Bd5 {[%clk 0:00:16.8]} 27. Bxd8 {[%clk 0:00:56.2]} 27... Bxc6 {[%clk
0:00:15.5]} 28. Bxc6 {[%clk 0:00:51.9]} 28... Rxd8 {[%clk 0:00:15.5]} 29. Bxb5
{[%clk 0:00:51.6]} 29... Bxb2 {[%clk 0:00:15.3]} 30. a4 {[%clk 0:00:51.7]} 30...
Bc3 {[%clk 0:00:15]} 31. Rc1 {[%clk 0:00:51.2]} 31... Bb4 {[%clk 0:00:14.8]} 32.
Rc7 {[%clk 0:00:51.5]} 32... Rf8 {[%clk 0:00:13.2]} 33. Kg2 {[%clk 0:00:51.2]}
33... g6 {[%clk 0:00:13.2]} 34. Bc4 {[%clk 0:00:51.3]} 34... Kg7 {[%clk
0:00:13.4]} 35. Rb7 {[%clk 0:00:51.8]} 35... h5 {[%clk 0:00:13.6]} 36. f4 {[%clk
0:00:50.8]} 36... Bc3 {[%clk 0:00:12.2]} 37. Kf3 {[%clk 0:00:50.6]} 37... Bb4
{[%clk 0:00:12.4]} 38. h3 {[%clk 0:00:51]} 38... Kf6 {[%clk 0:00:10.3]} 39. g4
{[%clk 0:00:46.3]} 39... hxg4+ {[%clk 0:00:10.8]} 40. hxg4 {[%clk 0:00:47.2]}
40... Kg7 {[%clk 0:00:11.6]} 41. Rc7 {[%clk 0:00:41.5]} 41... g5 {[%clk
0:00:11.8]} 42. fxg5 {[%clk 0:00:32.4]} 42... Kg6 {[%clk 0:00:12.4]} 43. Bd5
{[%clk 0:00:18.7]} 43... Kxg5 {[%clk 0:00:11.9]} 44. Bxf7 {[%clk 0:00:17.3]}
44... Rd8 {[%clk 0:00:10]} 45. Bc4 {[%clk 0:00:10.2]} 45... Rf8+ {[%clk
0:00:09.7]} 46. Ke4 {[%clk 0:00:08.9]} 46... Kxg4 {[%clk 0:00:08.9]} 47. Rg7+
{[%clk 0:00:08.5]} 47... Kh5 {[%clk 0:00:09.5]} 48. Rg2 {[%clk 0:00:07]} 48...
Re8+ {[%clk 0:00:09]} 49. Kf5 {[%clk 0:00:06.5]} 49... Rf8+ {[%clk 0:00:09.4]}
50. Ke6 {[%clk 0:00:06.1]} 50... Rf4 {[%clk 0:00:07.4]} 51. Bb5 {[%clk
0:00:05.5]} 51... Kh4 {[%clk 0:00:07.3]} 52. Rg8 {[%clk 0:00:05.2]} 52... Rg4
{[%clk 0:00:06.5]} 53. Rc8 {[%clk 0:00:05.9]} 53... Rg6+ {[%clk 0:00:06.3]} 54.
Kf5 {[%clk 0:00:05.5]} 54... Rg5+ {[%clk 0:00:06.9]} 55. Kf4 {[%clk 0:00:05.9]}
55... Rg4+ {[%clk 0:00:07.1]} 56. Kf3 {[%clk 0:00:06.5]} 56... Rg3+ {[%clk
0:00:07.3]} 57. Kf2 {[%clk 0:00:07]} 57... Rg5 {[%clk 0:00:06.5]} 58. Rh8+
{[%clk 0:00:06.2]} 58... Kg4 {[%clk 0:00:06.5]} 59. Bd7+ {[%clk 0:00:05.5]}
59... Kf4 {[%clk 0:00:07]} 60. Rh4+ {[%clk 0:00:05.3]} 60... Ke5 {[%clk
0:00:07.2]} 61. Bb5 {[%clk 0:00:04.4]} 61... Kd6 {[%clk 0:00:07.6]} 62. Rh7
{[%clk 0:00:04]} 62... Kc5 {[%clk 0:00:08]} 63. Rd7 {[%clk 0:00:04.3]} 63... Re5
{[%clk 0:00:06.8]} 64. Kf3 {[%clk 0:00:04.5]} 64... Re1 {[%clk 0:00:05.1]} 65.
Rh7 {[%clk 0:00:04.9]} 65... Kd4 {[%clk 0:00:05.5]} 66. Kg2 {[%clk 0:00:05.3]}
66... Kc3 {[%clk 0:00:05.7]} 67. Rc7+ {[%clk 0:00:04.6]} 67... Kb3 {[%clk
0:00:05.9]} 68. Kf2 {[%clk 0:00:05.3]} 68... Ka3 {[%clk 0:00:05.5]} 69. Rc2
{[%clk 0:00:05.2]} 69... Ra1 {[%clk 0:00:05.2]} 70. Ke2 {[%clk 0:00:04.5]} 70...
Ra2 {[%clk 0:00:05.7]} 71. Kd3 {[%clk 0:00:04.6]} 71... Rxc2 {[%clk 0:00:05.5]}
72. Kxc2 {[%clk 0:00:05.5]} 72... Ka2 {[%clk 0:00:05.7]} 73. Bc6 {[%clk
0:00:06]} 73... Ka3 {[%clk 0:00:06.6]} 74. Bb5 {[%clk 0:00:06.9]} 74... Ka2
{[%clk 0:00:07.4]} 75. Bc4+ {[%clk 0:00:06.6]} 75... Ka3 {[%clk 0:00:08.3]} 76.
Bb3 {[%clk 0:00:07.5]} 76... Bd6 {[%clk 0:00:07.1]} 77. Kc3 {[%clk 0:00:07.6]}
77... Bb4+ {[%clk 0:00:08]} 78. Kc4 {[%clk 0:00:08.5]} 78... Bd6 {[%clk
0:00:08]} 79. Bd1 {[%clk 0:00:09.4]} 79... Bb4 {[%clk 0:00:08.7]} 80. Kb5 {[%clk
0:00:10.3]} 80... Bc3 {[%clk 0:00:07.4]} 81. Be2 {[%clk 0:00:11.2]} 81... Bd2
{[%clk 0:00:07.8]} 82. Bf3 {[%clk 0:00:12.1]} 82... Be1 {[%clk 0:00:08.4]} 83.
Bd5 {[%clk 0:00:13]} 83... Bd2 {[%clk 0:00:09]} 84. Bc6 {[%clk 0:00:13.9]} 84...
Be1 {[%clk 0:00:09.6]} 85. Bb7 {[%clk 0:00:14.8]} 85... Bd2 {[%clk 0:00:10.2]}
86. Bc8 {[%clk 0:00:15.7]} 86... Be1 {[%clk 0:00:10.8]} 87. Bd7 {[%clk
0:00:16.6]} 87... Bd2 {[%clk 0:00:11.4]} 88. Be6 {[%clk 0:00:17.5]} 88... Be1
{[%clk 0:00:12.3]} 89. Bf7 {[%clk 0:00:18.4]} 89... Bd2 {[%clk 0:00:13.2]} 90.
Bg8 {[%clk 0:00:19.3]} 90... Be1 {[%clk 0:00:14.1]} 91. Bf7 {[%clk 0:00:20.2]}
91... Bd2 {[%clk 0:00:15]} 92. Be8 {[%clk 0:00:21.1]} 92... Be1 {[%clk
0:00:15.9]} 93. Kc4 {[%clk 0:00:22]} 93... Bd2 {[%clk 0:00:16.8]} 94. Kd3 {[%clk
0:00:22.9]} 94... Be1 {[%clk 0:00:17.7]} 95. Ke2 {[%clk 0:00:23.7]} 95... Bb4
{[%clk 0:00:18.4]} 96. Bd7 {[%clk 0:00:23.5]} 96... Kb3 {[%clk 0:00:18.8]} 97.
Bc6 {[%clk 0:00:24.4]} 97... Kc4 {[%clk 0:00:19.4]} 98. Bb5+ {[%clk 0:00:24.5]}
98... Kc5 {[%clk 0:00:20.3]} 99. Kd3 {[%clk 0:00:25.2]} 99... Ba3 {[%clk
0:00:20.8]} 100. Ke4 {[%clk 0:00:26.1]} 100... Bb4 {[%clk 0:00:21.6]} 101. Kd3
{[%clk 0:00:26.9]} 101... Ba3 {[%clk 0:00:22.5]} 102. Ke2 {[%clk 0:00:27.8]}
102... Bb4 {[%clk 0:00:23.4]} 103. Be8 {[%clk 0:00:28.5]} 103... Ba3 {[%clk
0:00:24.3]} 104. Kf3 {[%clk 0:00:29.4]} 104... Bb4 {[%clk 0:00:25.2]} 105. Kf4
{[%clk 0:00:30.3]} 105... Ba3 {[%clk 0:00:26.1]} 106. Kf5 {[%clk 0:00:31.2]}
106... Bb4 {[%clk 0:00:26.9]} 107. Kg6 {[%clk 0:00:32.1]} 107... Bc3 {[%clk
0:00:27.8]} 108. Kh5 {[%clk 0:00:33]} 108... Kb4 {[%clk 0:00:28.7]} 109. Kg4
{[%clk 0:00:33.9]} 109... Bd4 {[%clk 0:00:29.3]} 110. Kg3 {[%clk 0:00:34.8]}
110... Bc5 {[%clk 0:00:30]} 111. Kf3 {[%clk 0:00:35.7]} 111... Bb6 {[%clk
0:00:30.9]} 112. Ke4 {[%clk 0:00:36.6]} 112... Bc5 {[%clk 0:00:31.7]} 113. Kd5
{[%clk 0:00:37.5]} 113... Bb6 {[%clk 0:00:32.6]} 114. Kc6 {[%clk 0:00:38.4]}
114... Bd8 {[%clk 0:00:33.2]} 115. Kb7 {[%clk 0:00:39.3]} 115... Bf6 {[%clk
0:00:33.8]} 116. Kc8 {[%clk 0:00:40.2]} 116... Bc3 {[%clk 0:00:34.5]} 117. Bd7
{[%clk 0:00:41.1]} 117... Bb2 {[%clk 0:00:35.3]} 118. Bc6 {[%clk 0:00:42]}
118... Bc3 {[%clk 0:00:36.2]} 119. Kd7 {[%clk 0:00:42.9]} 119... Bb2 {[%clk
0:00:37]} 120. Ke6 {[%clk 0:00:43.8]} 120... Bc3 {[%clk 0:00:37.4]} 121. Kf5
{[%clk 0:00:44.7]} 121... Bb2 {[%clk 0:00:38.2]} 122. Ke4 {[%clk 0:00:45.6]}
1/2-1/2

[Event "Late-Titled-Tuesday-Blitz-September-26-2023"]
[Site "Chess.com"]
[Date "2023.09.26"]
[Round "4"]
[White "Garmendiarov"]
[Black "ErikRonka"]
[Result "1/2-1/2"]
[WhiteElo "2315"]
[BlackElo "2487"]
[TimeControl "180+1"]
[EndTime "14:40:34 PDT"]
[Termination "Game drawn by 50-move rule"]

1. e4 {[%clk 0:03:00.9]} 1... c6 {[%clk 0:02:57.5]} 2. d4 {[%clk 0:03:00.5]}
2... d5 {[%clk 0:02:58.2]} 3. e5 {[%clk 0:03:01.2]} 3... Bf5 {[%clk 0:02:51]} 4.
h4 {[%clk 0:03:01.3]} 4... h5 {[%clk 0:02:43.1]} 5. Bd3 {[%clk 0:03:01.3]} 5...
Bxd3 {[%clk 0:02:39]} 6. Qxd3 {[%clk 0:03:02.2]} 6... e6 {[%clk 0:02:39.9]} 7.
Nf3 {[%clk 0:03:02.5]} 7... c5 {[%clk 0:02:30.9]} 8. dxc5 {[%clk 0:02:49.2]}
8... Qa5+ {[%clk 0:02:25.4]} 9. c3 {[%clk 0:02:29.5]} 9... Qxc5 {[%clk
0:02:24.1]} 10. Be3 {[%clk 0:02:26.8]} 10... Qc7 {[%clk 0:02:24.5]} 11. Nbd2
{[%clk 0:02:23.5]} 11... Nc6 {[%clk 0:02:23.6]} 12. Bf4 {[%clk 0:02:14]} 12...
Nge7 {[%clk 0:02:19.9]} 13. O-O {[%clk 0:02:00.3]} 13... Nf5 {[%clk 0:02:04.1]}
14. Rfe1 {[%clk 0:01:54.7]} 14... Be7 {[%clk 0:01:44.3]} 15. g3 {[%clk
0:01:49.4]} 15... O-O {[%clk 0:01:09.6]} 16. Rad1 {[%clk 0:01:49.9]} 16... Rfd8
{[%clk 0:01:09.3]} 17. Nb3 {[%clk 0:01:49.5]} 17... Rac8 {[%clk 0:01:08.5]} 18.
Nbd4 {[%clk 0:01:48.3]} 18... Nfxd4 {[%clk 0:01:03.5]} 19. Nxd4 {[%clk
0:01:49.2]} 19... Nxd4 {[%clk 0:01:02.5]} 20. cxd4 {[%clk 0:01:26.8]} 20... Qc2
{[%clk 0:01:03.4]} 21. Qf3 {[%clk 0:01:24.2]} 21... g6 {[%clk 0:00:57]} 22. Rd2
{[%clk 0:01:21.9]} 22... Qf5 {[%clk 0:00:54.3]} 23. Qb3 {[%clk 0:01:07.1]} 23...
Rc7 {[%clk 0:00:48.6]} 24. Be3 {[%clk 0:00:57.5]} 24... Rdc8 {[%clk 0:00:48]}
25. Red1 {[%clk 0:00:42.2]} 25... Qg4 {[%clk 0:00:41.3]} 26. Kh2 {[%clk
0:00:35.6]} 26... b6 {[%clk 0:00:30.5]} 27. Qd3 {[%clk 0:00:31.1]} 27... Bb4
{[%clk 0:00:21.3]} 28. Re2 {[%clk 0:00:26.5]} 28... Qf3 {[%clk 0:00:20.3]} 29.
Bf4 {[%clk 0:00:21.7]} 29... Qxd3 {[%clk 0:00:19.3]} 30. Rxd3 {[%clk 0:00:22.6]}
30... Rc2 {[%clk 0:00:14.8]} 31. Rde3 {[%clk 0:00:18.7]} 31... Bd2 {[%clk
0:00:14]} 32. Rd3 {[%clk 0:00:11.8]} 32... Bxf4 {[%clk 0:00:14.4]} 33. Rxc2
{[%clk 0:00:12]} 33... Rxc2 {[%clk 0:00:14.9]} 34. gxf4 {[%clk 0:00:11.9]} 34...
Rxf2+ {[%clk 0:00:15.3]} 35. Kg3 {[%clk 0:00:12.6]} 35... Rxb2 {[%clk
0:00:16.1]} 36. Ra3 {[%clk 0:00:13]} 36... a5 {[%clk 0:00:15.7]} 37. Kf3 {[%clk
0:00:12]} 37... Kf8 {[%clk 0:00:16.1]} 38. f5 {[%clk 0:00:11]} 38... exf5 {[%clk
0:00:16]} 39. Kf4 {[%clk 0:00:11.7]} 39... Ke7 {[%clk 0:00:16.3]} 40. Kg5 {[%clk
0:00:11.8]} 40... Ke6 {[%clk 0:00:16.6]} 41. Kh6 {[%clk 0:00:10.9]} 41... Rd2
{[%clk 0:00:15.4]} 42. Ra4 {[%clk 0:00:10.6]} 42... b5 {[%clk 0:00:14.2]} 43.
Rxa5 {[%clk 0:00:10.6]} 43... Rxd4 {[%clk 0:00:14.8]} 44. Rxb5 {[%clk
0:00:09.9]} 44... Kxe5 {[%clk 0:00:14.9]} 45. Rb7 {[%clk 0:00:09.6]} 45... Rxh4
{[%clk 0:00:14.6]} 46. Rxf7 {[%clk 0:00:09.5]} 46... Ra4 {[%clk 0:00:15.2]} 47.
Kxg6 {[%clk 0:00:10]} 47... h4 {[%clk 0:00:15.2]} 48. Rxf5+ {[%clk 0:00:10.5]}
48... Ke4 {[%clk 0:00:15.4]} 49. Rh5 {[%clk 0:00:10.7]} 49... Ke3 {[%clk
0:00:14.6]} 50. Rxd5 {[%clk 0:00:10.8]} 50... Rxa2 {[%clk 0:00:12.7]} 51. Rh5
{[%clk 0:00:11]} 51... Rh2 {[%clk 0:00:12.5]} 52. Kg5 {[%clk 0:00:11.3]} 52...
Kf3 {[%clk 0:00:04.5]} 53. Rxh4 {[%clk 0:00:10.5]} 53... Rg2+ {[%clk 0:00:05.1]}
54. Kf5 {[%clk 0:00:10.6]} 54... Ra2 {[%clk 0:00:04.9]} 55. Rh3+ {[%clk
0:00:10.9]} 55... Kg2 {[%clk 0:00:05]} 56. Rb3 {[%clk 0:00:10.6]} 56... Ra5+
{[%clk 0:00:05.6]} 57. Kg4 {[%clk 0:00:11]} 57... Kf2 {[%clk 0:00:06.2]} 58.
Rb2+ {[%clk 0:00:10.3]} 58... Ke3 {[%clk 0:00:06.8]} 59. Rb3+ {[%clk 0:00:11.2]}
59... Kd4 {[%clk 0:00:07.1]} 60. Rf3 {[%clk 0:00:11.3]} 60... Rc5 {[%clk
0:00:06.4]} 61. Rf4+ {[%clk 0:00:11.9]} 61... Ke3 {[%clk 0:00:06.9]} 62. Rf3+
{[%clk 0:00:12.2]} 62... Ke2 {[%clk 0:00:07.5]} 63. Rf4 {[%clk 0:00:13.1]} 63...
Rc7 {[%clk 0:00:07.3]} 64. Rf5 {[%clk 0:00:13.5]} 64... Rc8 {[%clk 0:00:07.8]}
65. Kf4 {[%clk 0:00:14.1]} 65... Kf2 {[%clk 0:00:07.6]} 66. Re5 {[%clk
0:00:14.4]} 66... Rf8+ {[%clk 0:00:07]} 67. Rf5 {[%clk 0:00:14.9]} 67... Rd8
{[%clk 0:00:07.5]} 68. Re5 {[%clk 0:00:14.9]} 68... Kg2 {[%clk 0:00:07.2]} 69.
Rg5+ {[%clk 0:00:15.2]} 69... Kf2 {[%clk 0:00:06.9]} 70. Rf5 {[%clk 0:00:15.8]}
70... Ra8 {[%clk 0:00:07.4]} 71. Re5 {[%clk 0:00:16.1]} 71... Ra3 {[%clk
0:00:07.1]} 72. Re4 {[%clk 0:00:16.7]} 72... Kg2 {[%clk 0:00:07.5]} 73. Rd4
{[%clk 0:00:16.6]} 73... Rf3+ {[%clk 0:00:08]} 74. Kg4 {[%clk 0:00:15.9]} 74...
Rg3+ {[%clk 0:00:08.9]} 75. Kf5 {[%clk 0:00:16.1]} 75... Rb3 {[%clk 0:00:09.2]}
76. Rg4+ {[%clk 0:00:15.7]} 76... Kf3 {[%clk 0:00:09]} 77. Rf4+ {[%clk
0:00:16.3]} 77... Ke3 {[%clk 0:00:07.7]} 78. Re4+ {[%clk 0:00:16.9]} 78... Kd3
{[%clk 0:00:08.2]} 79. Rg4 {[%clk 0:00:17.3]} 79... Rb5+ {[%clk 0:00:08.2]} 80.
Kg6 {[%clk 0:00:17.2]} 80... Rb6+ {[%clk 0:00:08.3]} 81. Kg5 {[%clk 0:00:16.6]}
81... Ke3 {[%clk 0:00:09.2]} 82. Kh4 {[%clk 0:00:15.9]} 82... Rb8 {[%clk
0:00:08.8]} 83. Kg5 {[%clk 0:00:16.1]} 83... Kf3 {[%clk 0:00:09]} 84. Rf4+
{[%clk 0:00:16.2]} 84... Ke3 {[%clk 0:00:09.6]} 85. Rf7 {[%clk 0:00:15.4]} 85...
Rg8+ {[%clk 0:00:10]} 86. Kf5 {[%clk 0:00:15.7]} 86... Kd4 {[%clk 0:00:09.8]}
87. Rd7+ {[%clk 0:00:15.7]} 87... Kc5 {[%clk 0:00:09.6]} 88. Ke5 {[%clk
0:00:15.1]} 88... Rh8 {[%clk 0:00:09.9]} 89. Rc7+ {[%clk 0:00:15.1]} 89... Kb6
{[%clk 0:00:10.5]} 90. Rc1 {[%clk 0:00:15.6]} 90... Rh5+ {[%clk 0:00:10.7]} 91.
Kd4 {[%clk 0:00:16]} 91... Kb5 {[%clk 0:00:10.1]} 92. Rb1+ {[%clk 0:00:16.2]}
92... Kc6 {[%clk 0:00:10.3]} 93. Rc1+ {[%clk 0:00:16.8]} 93... Kd6 {[%clk
0:00:10.9]} 94. Rb1 {[%clk 0:00:17.5]} 94... Rh4+ {[%clk 0:00:11.2]} 95. Ke3
{[%clk 0:00:17.8]} 95... Kd5 {[%clk 0:00:12.1]} 96. Rb5+ {[%clk 0:00:17.7]}
96... Kc4 {[%clk 0:00:12.5]} 97. Rf5 {[%clk 0:00:17.5]} 97... Rh3+ {[%clk
0:00:12.8]} 98. Kf2 {[%clk 0:00:17.6]} 98... Rh7 {[%clk 0:00:12.6]} 99. Rf4+
{[%clk 0:00:18.1]} 99... Kd5 {[%clk 0:00:13]} 100. Rf3 {[%clk 0:00:18.6]} 100...
Ke4 {[%clk 0:00:13.3]} 101. Re3+ {[%clk 0:00:18.6]} 101... Kd4 {[%clk
0:00:13.9]} 102. Rg3 {[%clk 0:00:18.5]} 102... Ra7 {[%clk 0:00:14.2]} 103. Rg4+
{[%clk 0:00:18.7]} 1/2-1/2

[Event "Late-Titled-Tuesday-Blitz-September-26-2023"]
[Site "Chess.com"]
[Date "2023.09.26"]
[Round "4"]
[White "dropstoneDP"]
[Black "platy3"]
[Result "1-0"]
[WhiteElo "3114"]
[BlackElo "2879"]
[TimeControl "180+1"]
[EndTime "14:41:25 PDT"]
[Termination "dropstoneDP won by checkmate"]

1. e4 {[%clk 0:02:51.1]} 1... e5 {[%clk 0:02:58.4]} 2. Nf3 {[%clk 0:02:50.1]}
2... Nc6 {[%clk 0:02:59]} 3. Bb5 {[%clk 0:02:46.4]} 3... a6 {[%clk 0:02:59.1]}
4. Ba4 {[%clk 0:02:46.7]} 4... Nf6 {[%clk 0:02:58.5]} 5. O-O {[%clk 0:02:46.3]}
5... Be7 {[%clk 0:02:58.4]} 6. Re1 {[%clk 0:02:40]} 6... b5 {[%clk 0:02:56.9]}
7. Bb3 {[%clk 0:02:40.2]} 7... d6 {[%clk 0:02:57.4]} 8. c3 {[%clk 0:02:39.4]}
8... O-O {[%clk 0:02:57.4]} 9. h3 {[%clk 0:02:39.9]} 9... Na5 {[%clk 0:02:56.1]}
10. Bc2 {[%clk 0:02:39.6]} 10... c5 {[%clk 0:02:56.8]} 11. d4 {[%clk 0:02:40.2]}
11... Qc7 {[%clk 0:02:57.5]} 12. d5 {[%clk 0:02:38.2]} 12... Bd7 {[%clk
0:02:54.5]} 13. b3 {[%clk 0:02:37.4]} 13... Nb7 {[%clk 0:02:52.4]} 14. Nbd2
{[%clk 0:02:36.5]} 14... Rfb8 {[%clk 0:02:50.1]} 15. Nf1 {[%clk 0:02:33.7]}
15... a5 {[%clk 0:02:50.3]} 16. Be3 {[%clk 0:02:22.4]} 16... c4 {[%clk
0:02:42.2]} 17. bxc4 {[%clk 0:01:38.4]} 17... Qxc4 {[%clk 0:02:40.2]} 18. Bd2
{[%clk 0:01:37.6]} 18... Qc7 {[%clk 0:02:34.5]} 19. Ng3 {[%clk 0:01:33.6]} 19...
Nc5 {[%clk 0:02:34.7]} 20. Nh4 {[%clk 0:01:29.4]} 20... g6 {[%clk 0:02:26.9]}
21. Nf3 {[%clk 0:01:20.1]} 21... Ne8 {[%clk 0:02:22.5]} 22. Nh2 {[%clk
0:01:16.2]} 22... h5 {[%clk 0:02:05.1]} 23. f4 {[%clk 0:01:00.7]} 23... exf4
{[%clk 0:01:56.2]} 24. Bxf4 {[%clk 0:00:59.7]} 24... Ng7 {[%clk 0:01:56.4]} 25.
Nf3 {[%clk 0:00:57.7]} 25... b4 {[%clk 0:01:49.4]} 26. e5 {[%clk 0:00:54.5]}
26... dxe5 {[%clk 0:01:40]} 27. Nxe5 {[%clk 0:00:35.5]} 27... Bd6 {[%clk
0:01:39.8]} 28. Qf3 {[%clk 0:00:16]} 28... Re8 {[%clk 0:01:29.1]} 29. Nxd7
{[%clk 0:00:15.2]} 29... Qxd7 {[%clk 0:01:22.8]} 30. cxb4 {[%clk 0:00:09]} 30...
axb4 {[%clk 0:01:20.2]} 31. Rxe8+ {[%clk 0:00:08.6]} 31... Rxe8 {[%clk
0:01:19.6]} 32. Rf1 {[%clk 0:00:06.6]} 32... Bxf4 {[%clk 0:01:13.3]} 33. Qxf4
{[%clk 0:00:07.5]} 33... Qxd5 {[%clk 0:01:13.5]} 34. Qxb4 {[%clk 0:00:07.5]}
34... Qe5 {[%clk 0:00:54]} 35. Qf4 {[%clk 0:00:04.9]} 35... Qxf4 {[%clk
0:00:46.2]} 36. Rxf4 {[%clk 0:00:05.8]} 36... Re3 {[%clk 0:00:46.8]} 37. Rc4
{[%clk 0:00:05.6]} 37... Nge6 {[%clk 0:00:45.4]} 38. Ne4 {[%clk 0:00:05.6]}
38... Nd7 {[%clk 0:00:37.4]} 39. Bb3 {[%clk 0:00:04]} 39... Ne5 {[%clk
0:00:37.1]} 40. Rc8+ {[%clk 0:00:04]} 40... Kg7 {[%clk 0:00:37.6]} 41. Nd6
{[%clk 0:00:04.3]} 41... Nf4 {[%clk 0:00:36.5]} 42. Rc7 {[%clk 0:00:01.9]} 42...
Re1+ {[%clk 0:00:26.2]} 43. Kh2 {[%clk 0:00:02.4]} 43... Re2 {[%clk 0:00:19.8]}
44. Nxf7 {[%clk 0:00:02.9]} 44... Kf6 {[%clk 0:00:04.8]} 45. Nxe5 {[%clk
0:00:02.8]} 45... Rxe5 {[%clk 0:00:03.5]} 46. Rc6+ {[%clk 0:00:03]} 46... Kg5
{[%clk 0:00:03.5]} 47. Rc4 {[%clk 0:00:03.6]} 47... Re2 {[%clk 0:00:03.5]} 48.
Kg3 {[%clk 0:00:02.8]} 48... Rxg2+ {[%clk 0:00:02.8]} 49. Kf3 {[%clk 0:00:03.2]}
49... Rg1 {[%clk 0:00:02.8]} 50. h4+ {[%clk 0:00:03.7]} 50... Kxh4 {[%clk
0:00:03.1]} 51. Rxf4+ {[%clk 0:00:04.4]} 51... Kg5 {[%clk 0:00:03.7]} 52. Rb4
{[%clk 0:00:04.2]} 52... h4 {[%clk 0:00:04.3]} 53. Rb5+ {[%clk 0:00:04.5]} 53...
Kh6 {[%clk 0:00:04.8]} 54. Be6 {[%clk 0:00:05.1]} 54... Rf1+ {[%clk 0:00:04.4]}
55. Kg2 {[%clk 0:00:05.2]} 55... Re1 {[%clk 0:00:04.4]} 56. Bb3 {[%clk
0:00:05.6]} 56... Re3 {[%clk 0:00:04.8]} 57. Rc5 {[%clk 0:00:05.1]} 57... g5
{[%clk 0:00:05.3]} 58. Rc6+ {[%clk 0:00:05]} 58... Kg7 {[%clk 0:00:04.7]} 59.
Re6 {[%clk 0:00:04.4]} 59... Rc3 {[%clk 0:00:04.4]} 60. Re4 {[%clk 0:00:04.4]}
60... Kf6 {[%clk 0:00:04.3]} 61. Rc4 {[%clk 0:00:04.4]} 61... Rd3 {[%clk
0:00:04.2]} 62. Rb4 {[%clk 0:00:04.3]} 62... Rd2+ {[%clk 0:00:03.6]} 63. Kf3
{[%clk 0:00:04.5]} 63... Rd3+ {[%clk 0:00:04.1]} 64. Kf2 {[%clk 0:00:03.9]}
64... Rd2+ {[%clk 0:00:04.3]} 65. Ke3 {[%clk 0:00:04.3]} 65... Rg2 {[%clk
0:00:04.7]} 66. Rb6+ {[%clk 0:00:04.7]} 66... Ke5 {[%clk 0:00:05.2]} 67. Rb5+
{[%clk 0:00:04.4]} 67... Kf6 {[%clk 0:00:05.7]} 68. Rb6+ {[%clk 0:00:04.8]}
68... Ke5 {[%clk 0:00:06.1]} 69. Rh6 {[%clk 0:00:04.8]} 69... Rg3+ {[%clk
0:00:05.9]} 70. Kf2 {[%clk 0:00:05.4]} 70... Kf4 {[%clk 0:00:06.1]} 71. Rf6+
{[%clk 0:00:05.1]} 71... Ke4 {[%clk 0:00:06.1]} 72. Bc2+ {[%clk 0:00:04.5]}
72... Ke5 {[%clk 0:00:04.8]} 73. Rf5+ {[%clk 0:00:04.5]} 73... Ke6 {[%clk
0:00:05.5]} 74. Ra5 {[%clk 0:00:04.1]} 74... Rc3 {[%clk 0:00:03.3]} 75. Bf5+
{[%clk 0:00:04]} 75... Kf6 {[%clk 0:00:03.8]} 76. Bg4 {[%clk 0:00:04.3]} 76...
Rg3 {[%clk 0:00:04]} 77. Be2 {[%clk 0:00:02.8]} 77... Rc3 {[%clk 0:00:03.6]} 78.
Ra6+ {[%clk 0:00:02.9]} 78... Ke5 {[%clk 0:00:04]} 79. Ra5+ {[%clk 0:00:03.4]}
79... Kf4 {[%clk 0:00:04.6]} 80. Ra4+ {[%clk 0:00:03.8]} 80... Kf5 {[%clk
0:00:05.3]} 81. Rd4 {[%clk 0:00:03.3]} 81... h3 {[%clk 0:00:04.6]} 82. Rd3
{[%clk 0:00:02.6]} 82... Rc2 {[%clk 0:00:03.3]} 83. Rxh3 {[%clk 0:00:02]} 83...
Rxa2 {[%clk 0:00:03.9]} 84. Rf3+ {[%clk 0:00:02.6]} 84... Ke4 {[%clk 0:00:04.2]}
85. Rb3 {[%clk 0:00:03.5]} 85... Kf4 {[%clk 0:00:04.6]} 86. Rb4+ {[%clk
0:00:04]} 86... Kf5 {[%clk 0:00:05.3]} 87. Ke3 {[%clk 0:00:04.6]} 87... Ra3+
{[%clk 0:00:05.1]} 88. Bd3+ {[%clk 0:00:05.2]} 88... Ke5 {[%clk 0:00:05.3]} 89.
Rb5+ {[%clk 0:00:05.8]} 89... Kf6 {[%clk 0:00:05.8]} 90. Rf5+ {[%clk 0:00:05.7]}
90... Ke6 {[%clk 0:00:06.5]} 91. Rxg5 {[%clk 0:00:06.1]} 91... Ra1 {[%clk
0:00:07.2]} 92. Rb5 {[%clk 0:00:06.3]} 92... Kf6 {[%clk 0:00:07.7]} 93. Kd4
{[%clk 0:00:06.7]} 93... Ke7 {[%clk 0:00:08.4]} 94. Ke5 {[%clk 0:00:06.4]} 94...
Re1+ {[%clk 0:00:08.5]} 95. Be4 {[%clk 0:00:06.8]} 95... Ke8 {[%clk 0:00:07.4]}
96. Rb7 {[%clk 0:00:06.9]} 96... Re2 {[%clk 0:00:07.8]} 97. Rh7 {[%clk
0:00:06.4]} 97... Re1 {[%clk 0:00:07.3]} 98. Kd5 {[%clk 0:00:06.8]} 98... Kf8
{[%clk 0:00:07.7]} 99. Bf5 {[%clk 0:00:07.2]} 99... Re7 {[%clk 0:00:08.3]} 100.
Rh2 {[%clk 0:00:07.2]} 100... Kf7 {[%clk 0:00:08.3]} 101. Rf2 {[%clk 0:00:06.8]}
101... Kg7 {[%clk 0:00:07.8]} 102. Be6 {[%clk 0:00:07]} 102... Ra7 {[%clk
0:00:06.9]} 103. Kd6 {[%clk 0:00:06.8]} 103... Ra1 {[%clk 0:00:06.7]} 104. Bf5
{[%clk 0:00:03.5]} 104... Ra6+ {[%clk 0:00:06.3]} 105. Ke5 {[%clk 0:00:03.6]}
105... Ra5+ {[%clk 0:00:06.8]} 106. Ke6 {[%clk 0:00:03.9]} 106... Ra6+ {[%clk
0:00:06.8]} 107. Ke7 {[%clk 0:00:04.5]} 107... Ra7+ {[%clk 0:00:07.3]} 108. Bd7
{[%clk 0:00:05.2]} 108... Rb7 {[%clk 0:00:07.6]} 109. Rg2+ {[%clk 0:00:05.6]}
109... Kh7 {[%clk 0:00:07.9]} 110. Rg3 {[%clk 0:00:04.1]} 110... Ra7 {[%clk
0:00:07.5]} 111. Rg1 {[%clk 0:00:03.8]} 111... Rb7 {[%clk 0:00:07.6]} 112. Ke6
{[%clk 0:00:03.7]} 112... Kh6 {[%clk 0:00:07.2]} 113. Kf6 {[%clk 0:00:04.1]}
113... Kh7 {[%clk 0:00:05.8]} 114. Rh1+ {[%clk 0:00:03.8]} 114... Kg8 {[%clk
0:00:05.1]} 115. Be6+ {[%clk 0:00:04.7]} 115... Kf8 {[%clk 0:00:04.1]} 116. Rh8#
{[%clk 0:00:05.6]} 1-0